[Event "Czech Youth U16 Boys 2024"]
[Site "Kouty nad Desnou"]
[Date "2024.03.11"]
[Round "3.10"]
[White "Zemek, Antonin"]
[Black "Rybackova, Lucie"]
[Result "1/2-1/2"]
[ECO "A04"]
[WhiteElo "1870"]
[BlackElo "1983"]
[Annotator "RC"]
[PlyCount "75"]
[EventDate "2024.03.10"]
[EventType "swiss"]
[EventCountry "CZE"]
[SourceTitle "playchess.com"]
[Source "ChessBase"]
[SourceQuality "1"]
[TimeControl "40/5400+30:1800+30"]

1. Nf3 {[%emt 0:00:08]} g6 {[%emt 0:00:12]} 2. c4 {[%emt 0:02:44]} Bg7 {[%emt 0:00:12]} 3. Nc3 {[%emt 0:03:18]} f5 {[%emt 0:00:35]} 4. b3 {[%emt 0:03:26]} Nf6 {[%emt 0:01:27]} 5. Bb2 {[%emt 0:00:46]} O-O {[%emt 0:00:27]} 6. g3 {[%emt 0:01:51]} d6 {[%emt 0:00:20]} 7. d4 {[%emt 0:03:59]} Qe8 {[%emt 0:02:31]} 8. Bg2 {[%emt 0:03:25]} c6 {[%emt 0:02:45]} 9. O-O {[%emt 0:02:26]} h6 {[%emt 0:08:35]} 10. d5 {[%emt 0:09:26]} Na6 {[%emt 0:03:50]} 11. Rc1 {[%emt 0:19:42]} Nc5 {[%emt 0:05:07]} 12. b4 {[%emt 0:06:40]} Nce4 {[%emt 0:06:16]} 13. Nxe4 {[%emt 0:06:31]} Nxe4 {[%emt 0:03:22]} 14. Bxg7 {[%emt 0:01:41]} Kxg7 {[%emt 0:00:08]} 15. Qd4+ {[%emt 0:05:15]} e5 {[%emt 0:22:30]} 16. Qb2 {[%emt 0:03:40]} c5 {[%emt 0:04:50]} 17. Nd2 {[%emt 0:02:34]} Nxd2 {[%emt 0:00:50]} 18. Qxd2 {[%emt 0:00:09]} b6 {[%emt 0:02:41]} 19. bxc5 {[%emt 0:04:10]} bxc5 {[%emt 0:00:08]} 20. f4 {[%emt 0:02:00]} e4 {[%emt 0:07:02]} 21. Qa5 {[%emt 0:01:24]} Qd8 {[%emt 0:01:17]} 22. Qa3 {[%emt 0:01:05]} a5 {[%emt 0:03:49]} 23. Rb1 {[%emt 0:00:51]} Ba6 {[%emt 0:02:11]} 24. Rfc1 {[%emt 0:01:59]} Qc7 {[%emt 0:01:24]} 25. e3 {[%emt 0:00:16]} Rab8 {[%emt 0:01:16]} 26. Bf1 {[%emt 0:00:59]} Kh7 {[%emt 0:01:22]} 27. Be2 {[%emt 0:02:31]} Kg8 {[%emt 0:07:11]} 28. Kf2 {[%emt 0:01:20]} Kh7 {[%emt 0:00:48]} 29. h3 {[%emt 0:02:09]} Rg8 {[%emt 0:05:21]} 30. Rb3 {[%emt 0:01:18]} Rgc8 {[%emt 0:00:49]} 31. Rcb1 {[%emt 0:00:23]} Rb4 {[%emt 0:00:23]} 32. Qc1 {[%emt 0:02:24]} Rcb8 {[%emt 0:01:38]} 33. Qc3 {[%emt 0:00:59]} Qg7 {[%emt 0:01:01]} 34. Qc2 {[%emt 0:01:10]} Qc7 {[%emt 0:01:56]} 35. a3 {[%emt 0:01:31]} Rxb3 {[%emt 0:01:04]} 36. Rxb3 {[%emt 0:00:05]} Rxb3 {[%emt 0:00:41]} 37. Qxb3 {[%emt 0:00:45]} Qd8 {[%emt 0:01:31]} 38. Qa4 1/2-1/2

[Event "Czech Youth U16 Boys 2024"]
[Site "Kouty nad Desnou"]
[Date "2024.03.11"]
[Round "3.11"]
[White "Tegda, Vojtech"]
[Black "Ulcak, Michael"]
[Result "0-1"]
[ECO "B12"]
[WhiteElo "1936"]
[BlackElo "1929"]
[Annotator "RC"]
[PlyCount "98"]
[EventDate "2024.03.10"]
[EventType "swiss"]
[EventCountry "CZE"]
[SourceTitle "playchess.com"]
[Source "ChessBase"]
[SourceQuality "1"]
[TimeControl "40/5400+30:1800+30"]

1. e4 {[%emt 0:00:03]} c6 {[%emt 0:00:11]} 2. d4 {[%emt 0:02:23]} d5 {[%emt 0:00:25]} 3. f3 {[%emt 0:03:57]} Qb6 {[%emt 0:03:28]} 4. Nc3 {[%emt 0:06:12]} dxe4 {[%emt 0:01:54]} 5. fxe4 {[%emt 0:02:07]} e5 {[%emt 0:03:09]} 6. Nf3 {[%emt 0:52:08]} exd4 {[%emt 0:00:11]} 7. Qxd4 {[%emt 0:00:13]} Qxd4 {[%emt 0:00:14]} 8. Nxd4 {[%emt 0:00:03]} Bc5 {[%emt 0:00:14]} 9. Nb3 {[%emt 0:01:47]} Bd6 {[%emt 0:02:17]} 10. Bg5 {[%emt 0:02:20]} Bg4 {[%emt 0:05:06]} 11. Bd3 {[%emt 0:05:15]} Nd7 {[%emt 0:03:26]} 12. O-O {[%emt 0:00:57]} Ne5 {[%emt 0:06:48]} 13. Rae1 {[%emt 0:03:00]} f6 {[%emt 0:04:54]} 14. Be3 {[%emt 0:01:19]} Ne7 {[%emt 0:03:00]} 15. Ne2 {[%emt 0:00:25]} Bb4 {[%emt 0:03:32]} 16. Bd2 {[%emt 0:03:03]} Bxd2 {[%emt 0:01:42]} 17. Nxd2 {[%emt 0:00:03]} O-O-O {[%emt 0:01:07]} 18. Nc1 {[%emt 0:01:27]} c5 {[%emt 0:05:32]} 19. h3 {[%emt 0:01:24]} Be6 {[%emt 0:03:31]} 20. Nf3 {[%emt 0:00:24]} N7c6 {[%emt 0:01:09]} 21. Be2 {[%emt 0:00:55]} Rhe8 {[%emt 0:07:27]} 22. Nxe5 {[%emt 0:01:57]} Nxe5 {[%emt 0:00:38]} 23. Nd3 {[%emt 0:00:23]} Nd7 {[%emt 0:05:41]} 24. Nf4 {[%emt 0:01:15]} Bf7 {[%emt 0:01:37]} 25. Bg4 {[%emt 0:00:10]} Kb8 {[%emt 0:01:02]} 26. Rd1 {[%emt 0:03:57]} Ne5 {[%emt 0:03:05]} 27. Be2 {[%emt 0:00:30]} Nc4 {[%emt 0:08:53]} 28. Bxc4 {[%emt 0:03:04]} Bxc4 {[%emt 0:00:14]} 29. Rxd8+ {[%emt 0:00:08]} Rxd8 {[%emt 0:00:02]} 30. Rc1 {[%emt 0:01:52]} Bxa2 {[%emt 0:02:31]} 31. b3 {[%emt 0:00:23]} c4 {[%emt 0:00:13]} 32. b4 {[%emt 0:01:50]} c3 {[%emt 0:01:55]} 33. Ne2 {[%emt 0:00:10]} Bf7 {[%emt 0:01:01]} 34. Nxc3 {[%emt 0:00:20]} Rd4 {[%emt 0:00:35]} 35. b5 {[%emt 0:00:50]} Rc4 {[%emt 0:00:22]} 36. Ne2 {[%emt 0:00:57]} Rxe4 {[%emt 0:00:18]} 37. Kf2 {[%emt 0:00:24]} Rb4 {[%emt 0:01:09]} 38. Rd1 {[%emt 0:00:26]} Rxb5 {[%emt 0:01:27]} 39. Rd7 {[%emt 0:00:06]} Bg6 {[%emt 0:00:23]} 40. Rxg7 {[%emt 0:00:08]} a5 {[%emt 0:00:50]} 41. c4 {[%emt 0:03:20]} Rc5 {[%emt 0:01:52]} 42. Rg8+ {[%emt 0:08:00]} Ka7 {[%emt 0:02:21]} 43. Rf8 {[%emt 0:02:32]} Rxc4 {[%emt 0:02:39]} 44. Rxf6 {[%emt 0:00:09]} a4 {[%emt 0:00:47]} 45. Rf3 {[%emt 0:00:25]} b5 {[%emt 0:01:10]} 46. Ra3 {[%emt 0:00:46]} Bc2 {[%emt 0:00:41]} 47. Ke3 {[%emt 0:01:23]} b4 {[%emt 0:00:28]} 48. Ra1 {[%emt 0:00:05]} b3 {[%emt 0:00:28]} 49. Kd2 {[%emt 0:00:39]} b2 {[%emt 0:00:21]} 0-1

[Event "Czech Youth U16 Boys 2024"]
[Site "Kouty nad Desnou"]
[Date "2024.03.11"]
[Round "3.12"]
[White "Stein, Michael"]
[Black "Zezula, Matej"]
[Result "1-0"]
[ECO "B30"]
[WhiteElo "1883"]
[BlackElo "1825"]
[Annotator "NA RC"]
[PlyCount "109"]
[EventDate "2024.03.10"]
[EventType "swiss"]
[EventCountry "CZE"]
[SourceTitle "playchess.com"]
[Source "ChessBase"]
[SourceQuality "1"]
[TimeControl "40/5400+30:1800+30"]

1. e4 {[%emt 0:00:03]} c5 {[%emt 0:00:12]} 2. Nf3 {[%emt 0:00:05]} Nc6 {[%emt 0:00:05]} 3. Bb5 {[%emt 0:00:08]} d6 {[%emt 0:00:35]} 4. h3 {[%emt 0:02:17]} Bd7 {[%emt 0:03:59]} 5. O-O {[%emt 0:05:41]} a6 {[%emt 0:02:09]} 6. Bxc6 {[%emt 0:01:38] B51: Sicilian: Moscow Variation (3 Bb5+) without 3...Bd7.} Bxc6 {[%emt 0:00:14]} 7. Nc3 {[%emt 0:00:20]} Nf6 {[%emt 0:01:05]} 8. Re1 {[%emt 0:02:08]} e6 {[%emt 0:01:28]} 9. d3 {[%emt 0:02:43]} Be7 {[%emt 0:00:21]} 10. Ne2 {[%emt 0:03:34]} O-O {[%emt 0:02:32]} 11. Ng3 {[%emt 0:00:41]} b5 {[%emt 0:02:49]} 12. c3 {[%emt 0:03:05]} Qc7 {[%emt 0:05:23]} 13. Qe2 {[%emt 0:07:24]} Bb7 {[%emt 0:03:22]} 14. b3 {[%emt 0:03:35]} Rfc8 {[%emt 0:02:03]} 15. Bb2 {[%emt 0:00:34]} c4 {[%emt 0:04:16]} 16. d4 {[%emt 0:02:48]} d5 {[%emt 0:04:32]} 17. e5 {[%emt 0:03:26]} Nd7 {[%emt 0:00:29]} 18. Nh2 {[%emt 0:03:48]} b4 {[%emt 0:03:08]} 19. Rec1 {[%emt 0:02:20]} Nb6 {[%emt 0:02:21]} (19... a5 $17 20. Nh5 Nf8) 20. f4 {[%emt 0:04:29]} a5 {[%emt 0:12:36]} 21. Qg4 {[%emt 0:06:06]} Bf8 {[%emt 0:06:04]} 22. f5 {[%emt 0:01:33]} exf5 {[%emt 0:01:04]} 23. Nxf5 {[%emt 0:02:41]} g6 {[%emt 0:01:53]} (23... Qc6 $15) 24. Ng3 {[%emt 0:02:06]} (24. Qg5 $14) 24... Kh8 {[%emt 0:04:16]} (24... Qd7 $15 25. Qf3 Bg7) 25. Nf3 {[%emt 0:02:20]} a4 {[%emt 0:10:47]} 26. cxb4 {[%emt 0:04:23]} Bxb4 {[%emt 0:01:55]} (26... axb3 $11 27. axb3 Rxa1 28. Bxa1 Bh6) 27. a3 {[%emt 0:10:20]} (27. Ng5 $1 $14 Rg8 28. bxc4 Nxc4 29. Rf1) 27... c3 {[%emt 0:13:26]} 28. Rab1 {[%emt 0:02:48]} c2 {[%emt 0:01:00]} 29. Ra1 {[%emt 0:00:11]} Be7 {[%emt 0:00:35]} 30. b4 {[%emt 0:00:29]} Qc4 {[%emt 0:01:17]} (30... Ba6 $15 {is superior.}) 31. e6 {[%emt 0:03:36]} f5 {[%emt 0:04:20]} 32. Qf4 $1 {[%emt 0:01:28]} Qc7 {[%emt 0:03:21]} 33. Ne5 {[%emt 0:01:07]} Bf6 {[%emt 0:00:43]} 34. Nf7+ {[%emt 0:05:15]} (34. Nxf5 $11 gxf5 35. Nf7+ (35. Qxf5 Qg7 $17) 35... Kg8 36. Qxf5) 34... Kg8 {[%emt 0:00:12]} 35. Qf3 {[%emt 0:01:05]} (35. Nh6+ $11 Kg7 36. Nhxf5+ gxf5 37. Nh5+ (37. Nxf5+ $2 {too greedy.} Kh8 $19) 37... Kh8 (37... Kg6 38. Qf3 $14) 38. Qxc7 Rxc7 39. Nxf6) 35... Qe7 {[%emt 0:00:42]} 36. Re1 {[%emt 0:00:59]} Rc6 {[%emt 0:00:32]} (36... Bg7 $1 $15 37. Kh1 Rc6) 37. Qe2 {[%emt 0:02:12]} Rac8 {[%emt 0:00:45]} 38. Nh6+ {[%emt 0:00:24]} Kh8 {[%emt 0:00:56]} 39. b5 {[%emt 0:01:13]} R6c7 {[%emt 0:00:29]} 40. Nhxf5 {[%emt 0:02:24]} gxf5 {[%emt 0:00:11]} 41. Nxf5 {[%emt 0:30:03]} Qf8 {[%emt 0:32:12]} 42. e7 {[%emt 0:00:37]} Bxe7 {[%emt 0:00:00]} 43. Nxe7 {[%emt 0:00:00]} Qg7 {[%emt 0:00:00]} 44. Nxc8 {[%emt 0:00:00]} Nxc8 $18 {[%emt 0:00:00]} 45. Qe8+ {[%emt 0:00:00]} Qg8 {[%emt 0:00:00]} 46. Qe5+ {[%emt 0:00:00]} Qg7 {[%emt 0:00:00]} 47. Qf4 {[%emt 0:00:00]} Re7 {[%emt 0:00:00]} 48. Rac1 {[%emt 0:00:00]} Nb6 {[%emt 0:00:00]} 49. Qd6 {[%emt 0:00:00]} Nc8 {[%emt 0:00:00]} 50. Qd8+ {[%emt 0:00:00]} Qg8 {[%emt 0:00:00]} 51. Qxg8+ {[%emt 0:00:00]} Kxg8 {[%emt 0:00:00]} 52. Rxe7 {[%emt 0:00:00]} Nxe7 {[%emt 0:00:00]} 53. Rxc2 {[%emt 0:00:00]} Bc8 {[%emt 0:00:00]} 54. b6 {[%emt 0:00:00]} Kf7 {[%emt 0:00:00]} 55. Rxc8 {[%emt 0:00:00]} 1-0

[Event "Czech Youth U16 Boys 2024"]
[Site "Kouty nad Desnou"]
[Date "2024.03.11"]
[Round "4.1"]
[White "Jasso, Matej"]
[Black "Fizer, Marek"]
[Result "1/2-1/2"]
[ECO "B90"]
[WhiteElo "2060"]
[BlackElo "2058"]
[Annotator "RC"]
[PlyCount "68"]
[EventDate "2024.03.10"]
[EventType "swiss"]
[EventCountry "CZE"]
[SourceTitle "playchess.com"]
[Source "ChessBase"]
[SourceQuality "1"]
[TimeControl "40/5400+30:1800+30"]

1. e4 {[%emt 0:00:11]} c5 {[%emt 0:00:12]} 2. Nf3 {[%emt 0:00:12]} d6 {[%emt 0:00:10]} 3. d4 {[%emt 0:00:06]} cxd4 {[%emt 0:00:11]} 4. Nxd4 {[%emt 0:00:06]} Nf6 {[%emt 0:00:18]} 5. Nc3 {[%emt 0:00:08]} a6 {[%emt 0:00:19]} 6. Be3 {[%emt 0:01:00]} e5 {[%emt 0:00:26]} 7. Nb3 {[%emt 0:00:14]} Be7 {[%emt 0:00:31]} 8. f3 {[%emt 0:00:50]} Be6 {[%emt 0:00:44]} 9. Qd2 {[%emt 0:00:46]} h5 {[%emt 0:00:47]} 10. Be2 {[%emt 0:00:10]} Nbd7 {[%emt 0:01:13]} 11. Nd5 {[%emt 0:01:18]} Nxd5 {[%emt 0:01:32]} 12. exd5 {[%emt 0:00:18]} Bf5 {[%emt 0:01:25]} 13. c4 {[%emt 0:02:52]} b6 {[%emt 0:04:24]} 14. O-O {[%emt 0:01:23]} g5 {[%emt 0:20:05]} 15. Bd3 {[%emt 0:05:52]} Bxd3 {[%emt 0:04:58]} 16. Qxd3 {[%emt 0:00:10]} Nc5 {[%emt 0:00:29]} 17. Nxc5 {[%emt 0:04:45]} bxc5 {[%emt 0:00:14]} 18. a3 {[%emt 0:04:34]} a5 {[%emt 0:03:26]} 19. b4 {[%emt 0:00:33]} axb4 {[%emt 0:06:24]} 20. axb4 {[%emt 0:00:15]} cxb4 {[%emt 0:03:30]} 21. c5 {[%emt 0:00:07]} Rxa1 {[%emt 0:08:35]} 22. Rxa1 {[%emt 0:00:22]} dxc5 {[%emt 0:03:58]} 23. Qb5+ {[%emt 0:16:54]} Kf8 {[%emt 0:02:22]} 24. Bxc5 {[%emt 0:02:15]} Kg7 {[%emt 0:04:24]} 25. Qxb4 {[%emt 0:00:19]} Bxc5+ {[%emt 0:01:41]} 26. Qxc5 {[%emt 0:00:09]} Rh6 {[%emt 0:02:48]} 27. Re1 {[%emt 0:03:25]} Rd6 {[%emt 0:17:59]} 28. Rxe5 {[%emt 0:05:08]} f6 {[%emt 0:01:38]} 29. Re1 {[%emt 0:01:50]} Rxd5 {[%emt 0:00:42]} 30. Qe7+ {[%emt 0:00:12]} Qxe7 {[%emt 0:01:27]} 31. Rxe7+ {[%emt 0:00:08]} Kg6 {[%emt 0:00:27]} 32. Kf2 {[%emt 0:00:28]} Kf5 {[%emt 0:02:31]} 33. Re2 {[%emt 0:00:55]} h4 {[%emt 0:01:49]} 34. g3 {[%emt 0:01:20]} Rd4 {[%emt 0:02:35]} 1/2-1/2

[Event "Czech Youth U16 Boys 2024"]
[Site "Kouty nad Desnou"]
[Date "2024.03.11"]
[Round "4.2"]
[White "Hladky, Tadeas"]
[Black "Hozda, Max"]
[Result "1-0"]
[ECO "B15"]
[WhiteElo "2056"]
[BlackElo "2032"]
[Annotator "RC"]
[PlyCount "57"]
[EventDate "2024.03.10"]
[EventType "swiss"]
[EventCountry "CZE"]
[SourceTitle "playchess.com"]
[Source "ChessBase"]
[SourceQuality "1"]
[TimeControl "40/5400+30:1800+30"]

1. e4 {[%emt 0:00:03]} c6 {[%emt 0:01:23]} 2. d4 {[%emt 0:00:05]} d5 {[%emt 0:00:07]} 3. Nc3 {[%emt 0:00:06]} dxe4 {[%emt 0:00:07]} 4. Nxe4 {[%emt 0:00:09]} Nf6 {[%emt 0:00:32]} 5. Nxf6+ {[%emt 0:00:13]} exf6 {[%emt 0:00:11]} 6. c3 {[%emt 0:00:09]} Bd6 {[%emt 0:00:08]} 7. Bd3 {[%emt 0:00:11]} O-O {[%emt 0:00:17]} 8. Qc2 {[%emt 0:00:06]} Re8+ {[%emt 0:00:20]} 9. Ne2 {[%emt 0:00:08]} h5 {[%emt 0:00:09]} 10. Be3 {[%emt 0:04:17]} Nd7 {[%emt 0:00:16]} 11. O-O-O {[%emt 0:00:15]} Nf8 {[%emt 0:00:42]} 12. c4 {[%emt 0:00:45]} Be6 {[%emt 0:01:12]} 13. Nc3 {[%emt 0:01:01]} Bb4 {[%emt 0:05:38]} 14. Ne4 {[%emt 0:00:46]} Be7 {[%emt 0:00:59]} 15. Kb1 {[%emt 0:00:23]} Rc8 {[%emt 0:01:09]} 16. h3 {[%emt 0:05:53]} b5 {[%emt 0:04:59]} 17. c5 {[%emt 0:02:05]} b4 {[%emt 0:25:55]} 18. Nd2 {[%emt 0:10:27]} Bd5 {[%emt 0:05:45]} 19. Rhg1 {[%emt 0:05:11]} Ne6 {[%emt 0:05:52]} 20. h4 {[%emt 0:19:33]} Qc7 {[%emt 0:08:32]} 21. g4 {[%emt 0:04:07]} Nf4 {[%emt 0:03:34]} 22. gxh5 {[%emt 0:17:05]} Nxd3 {[%emt 0:06:33]} 23. Qxd3 {[%emt 0:00:28]} Kh8 {[%emt 0:04:28]} 24. Rg3 {[%emt 0:10:23]} Rcd8 {[%emt 0:01:00]} 25. Rdg1 {[%emt 0:01:36]} Rg8 {[%emt 0:03:32]} 26. h6 {[%emt 0:02:22]} g6 {[%emt 0:01:29]} 27. h5 {[%emt 0:00:46]} g5 {[%emt 0:00:19]} 28. f4 {[%emt 0:00:08]} gxf4 {[%emt 0:05:16]} 29. Rg7 {[%emt 0:00:23]} 1-0

[Event "Czech Youth U16 Boys 2024"]
[Site "Kouty nad Desnou"]
[Date "2024.03.11"]
[Round "4.3"]
[White "Prazak, Daniel"]
[Black "Davidek, Zdenek"]
[Result "1/2-1/2"]
[ECO "A26"]
[WhiteElo "2223"]
[BlackElo "2135"]
[Annotator "RC"]
[PlyCount "96"]
[EventDate "2024.03.10"]
[EventType "swiss"]
[EventCountry "CZE"]
[SourceTitle "playchess.com"]
[Source "ChessBase"]
[SourceQuality "1"]
[TimeControl "40/5400+30:1800+30"]

1. c4 {[%emt 0:00:14]} e5 {[%emt 0:00:54]} 2. g3 {[%emt 0:00:10]} Nc6 {[%emt 0:01:33]} 3. Bg2 {[%emt 0:00:28]} g6 {[%emt 0:02:42]} 4. Nc3 {[%emt 0:01:38]} Bg7 {[%emt 0:00:06]} 5. d3 {[%emt 0:02:31]} d6 {[%emt 0:00:40]} 6. Nf3 {[%emt 0:01:06]} Nf6 {[%emt 0:00:26]} 7. O-O {[%emt 0:01:42]} O-O {[%emt 0:00:05]} 8. Rb1 {[%emt 0:00:48]} a5 {[%emt 0:00:05]} 9. a3 {[%emt 0:00:53]} Bf5 {[%emt 0:06:09]} 10. Qc2 {[%emt 0:14:00]} Qd7 {[%emt 0:04:39]} 11. b4 {[%emt 0:09:50]} axb4 {[%emt 0:01:59]} 12. axb4 {[%emt 0:00:10]} Bh3 {[%emt 0:10:27]} 13. Nd5 {[%emt 0:08:10]} Bxg2 {[%emt 0:01:22]} 14. Nxf6+ {[%emt 0:00:09]} Bxf6 {[%emt 0:00:05]} 15. Kxg2 {[%emt 0:00:10]} Nd4 {[%emt 0:15:21]} 16. Nxd4 {[%emt 0:02:23]} exd4 {[%emt 0:00:05]} 17. Bb2 {[%emt 0:07:59]} Ra2 {[%emt 0:11:25]} 18. Ra1 {[%emt 0:01:27]} Rfa8 {[%emt 0:00:23]} 19. Rxa2 {[%emt 0:00:58]} Rxa2 {[%emt 0:00:06]} 20. Ra1 {[%emt 0:05:01]} Qc6+ {[%emt 0:08:28]} 21. Kg1 {[%emt 0:03:01]} Qa6 {[%emt 0:00:57]} 22. Qb1 {[%emt 0:01:13]} Rxa1 {[%emt 0:02:17]} 23. Qxa1 {[%emt 0:01:11]} Qxa1+ {[%emt 0:10:09]} 24. Bxa1 {[%emt 0:00:07]} Kf8 {[%emt 0:00:14]} 25. e3 {[%emt 0:09:17]} Ke7 {[%emt 0:01:01]} 26. Bxd4 {[%emt 0:01:42]} Bxd4 {[%emt 0:00:19]} 27. exd4 {[%emt 0:00:07]} d5 {[%emt 0:00:29]} 28. b5 {[%emt 0:06:50]} c6 {[%emt 0:03:31]} 29. bxc6 {[%emt 0:00:55]} bxc6 {[%emt 0:00:05]} 30. Kg2 {[%emt 0:01:22]} Ke6 {[%emt 0:08:03]} 31. Kf3 {[%emt 0:01:17]} Kf5 {[%emt 0:03:08]} 32. h3 {[%emt 0:03:27]} h6 {[%emt 0:04:25]} 33. Ke3 {[%emt 0:01:52]} Ke6 {[%emt 0:00:43]} 34. Kf4 {[%emt 0:01:30]} Kf6 {[%emt 0:00:38]} 35. Kg4 {[%emt 0:01:52]} Ke6 {[%emt 0:02:07]} 36. h4 {[%emt 0:01:09]} Kf6 {[%emt 0:00:32]} 37. Kf4 {[%emt 0:00:59]} g5+ {[%emt 0:01:58]} 38. hxg5+ {[%emt 0:03:47]} hxg5+ {[%emt 0:00:01]} 39. Ke3 {[%emt 0:00:31]} Kf5 {[%emt 0:01:25]} 40. Kf3 {[%emt 0:00:35]} Kf6 {[%emt 0:00:16]} 41. Kg4 {[%emt 0:31:04]} Kg6 {[%emt 0:30:31]} 42. f4 {[%emt 0:03:24]} f6 {[%emt 0:00:00]} 43. f5+ {[%emt 0:00:00]} Kh6 {[%emt 0:00:00]} 44. Kf3 {[%emt 0:00:00]} Kh5 {[%emt 0:00:00]} 45. c5 {[%emt 0:00:00]} Kh6 {[%emt 0:00:00]} 46. Ke3 {[%emt 0:00:00]} Kh5 {[%emt 0:00:00]} 47. Kf3 {[%emt 0:00:00]} Kh6 {[%emt 0:00:00]} 48. g4 {[%emt 0:00:00]} Kg7 {[%emt 0:00:00]} 1/2-1/2

[Event "Czech Youth U16 Boys 2024"]
[Site "Kouty nad Desnou"]
[Date "2024.03.11"]
[Round "4.4"]
[White "Andrle, Filip"]
[Black "Juhanak, Daniel"]
[Result "0-1"]
[ECO "C11"]
[WhiteElo "1943"]
[BlackElo "2005"]
[Annotator "RC"]
[PlyCount "74"]
[EventDate "2024.03.10"]
[EventType "swiss"]
[EventCountry "CZE"]
[SourceTitle "playchess.com"]
[Source "ChessBase"]
[SourceQuality "1"]
[TimeControl "40/5400+30:1800+30"]

1. e4 {[%emt 0:00:03]} e6 {[%emt 0:00:15]} 2. d4 {[%emt 0:00:23]} d5 {[%emt 0:00:06]} 3. Nc3 {[%emt 0:00:06]} Nf6 {[%emt 0:00:10]} 4. Bg5 {[%emt 0:00:11]} h6 {[%emt 0:00:08]} 5. Bxf6 {[%emt 0:03:12]} Qxf6 {[%emt 0:00:08]} 6. exd5 {[%emt 0:04:46]} Bb4 {[%emt 0:00:02]} 7. Be2 {[%emt 0:15:46]} exd5 {[%emt 0:01:27]} 8. Bf3 {[%emt 0:00:56]} O-O {[%emt 0:03:01]} 9. Nge2 {[%emt 0:03:43]} c6 {[%emt 0:01:09]} 10. O-O {[%emt 0:02:11]} Bf5 {[%emt 0:03:28]} 11. Ng3 {[%emt 0:02:07]} Bh7 {[%emt 0:03:13]} 12. Nce2 {[%emt 0:03:26]} Bd6 {[%emt 0:01:33]} 13. c3 {[%emt 0:04:59]} Nd7 {[%emt 0:01:15]} 14. Qd2 {[%emt 0:03:17]} Rfe8 {[%emt 0:03:04]} 15. Rfe1 {[%emt 0:06:20]} Bc7 {[%emt 0:01:55]} 16. Nf1 {[%emt 0:02:24]} Nf8 {[%emt 0:01:57]} 17. Neg3 {[%emt 0:04:24]} Ne6 {[%emt 0:03:59]} 18. Bd1 {[%emt 0:03:47]} Nf4 {[%emt 0:07:00]} 19. Bc2 {[%emt 0:03:15]} h5 {[%emt 0:07:14]} 20. Bxh7+ {[%emt 0:05:49]} Kxh7 {[%emt 0:00:23]} 21. Ne2 {[%emt 0:02:38]} Ne6 {[%emt 0:01:47]} 22. Qd3+ {[%emt 0:07:25]} g6 {[%emt 0:00:56]} 23. Nd2 {[%emt 0:01:31]} Re7 {[%emt 0:05:09]} 24. Nf3 {[%emt 0:01:20]} Rae8 {[%emt 0:04:05]} 25. Kh1 {[%emt 0:02:21]} Kg7 {[%emt 0:04:13]} 26. h4 {[%emt 0:02:06]} Kg8 {[%emt 0:10:30]} 27. g3 {[%emt 0:02:13]} Ng7 {[%emt 0:01:20]} 28. Kg2 {[%emt 0:00:53]} Nf5 {[%emt 0:01:25]} 29. Neg1 {[%emt 0:02:28]} Re4 {[%emt 0:00:49]} 30. Nh3 {[%emt 0:01:01]} R8e7 {[%emt 0:09:48]} 31. Nhg5 {[%emt 0:03:01]} Rxe1 {[%emt 0:12:16]} 32. Rxe1 {[%emt 0:00:56]} Rxe1 {[%emt 0:00:43]} 33. Nxe1 {[%emt 0:00:10]} Qe7 {[%emt 0:00:26]} 34. Nef3 {[%emt 0:02:18]} Kg7 {[%emt 0:01:07]} 35. Nh3 {[%emt 0:03:29]} f6 {[%emt 0:03:39]} 36. a3 {[%emt 0:01:55]} Qe4 {[%emt 0:04:58]} 37. Qd2 {[%emt 0:01:29]} Nxh4+ {[%emt 0:01:11]} 0-1

[Event "Czech Youth U16 Boys 2024"]
[Site "Kouty nad Desnou"]
[Date "2024.03.11"]
[Round "4.5"]
[White "Buchtova, Viktorie"]
[Black "Juracak, David"]
[Result "0-1"]
[ECO "C43"]
[WhiteElo "1874"]
[BlackElo "1944"]
[Annotator "RC"]
[PlyCount "92"]
[EventDate "2024.03.10"]
[EventType "swiss"]
[EventCountry "CZE"]
[SourceTitle "playchess.com"]
[Source "ChessBase"]
[SourceQuality "1"]
[TimeControl "40/5400+30:1800+30"]

1. e4 {[%emt 0:00:02]} e5 {[%emt 0:00:08]} 2. Nf3 {[%emt 0:00:04]} Nf6 {[%emt 0:00:11]} 3. d4 {[%emt 0:00:07]} Nxe4 {[%emt 0:01:05]} 4. Bd3 {[%emt 0:00:33]} d5 {[%emt 0:00:57]} 5. Nxe5 {[%emt 0:00:08]} Be7 {[%emt 0:03:22]} 6. O-O {[%emt 0:00:51]} O-O {[%emt 0:09:25]} 7. Nd2 {[%emt 0:02:59]} Bf5 {[%emt 0:18:26]} 8. Qf3 {[%emt 0:14:52]} Nxd2 {[%emt 0:01:10]} 9. Bxd2 {[%emt 0:00:33]} Bxd3 {[%emt 0:00:15]} 10. Qxd3 {[%emt 0:00:32]} Nd7 {[%emt 0:00:31]} 11. Bf4 {[%emt 0:01:23]} Nxe5 {[%emt 0:07:37]} 12. Bxe5 {[%emt 0:00:19]} Bf6 {[%emt 0:03:45]} 13. Rfe1 {[%emt 0:09:43]} c6 {[%emt 0:02:42]} 14. Qb3 {[%emt 0:02:41]} Bxe5 {[%emt 0:04:27]} 15. Rxe5 {[%emt 0:00:05]} f6 {[%emt 0:00:14]} 16. Re6 {[%emt 0:06:38]} Qd7 {[%emt 0:01:01]} 17. Rae1 {[%emt 0:01:04]} Rfe8 {[%emt 0:00:26]} 18. Rxe8+ {[%emt 0:06:53]} Rxe8 {[%emt 0:00:08]} 19. Rxe8+ {[%emt 0:00:04]} Qxe8 {[%emt 0:00:02]} 20. Qe3 {[%emt 0:02:57]} Qxe3 {[%emt 0:05:43]} 21. fxe3 {[%emt 0:00:01]} Kf7 {[%emt 0:00:06]} 22. Kf2 {[%emt 0:00:22]} f5 {[%emt 0:01:15]} 23. a4 {[%emt 0:12:31]} b5 {[%emt 0:02:21]} 24. axb5 {[%emt 0:19:01]} cxb5 {[%emt 0:00:13]} 25. b4 {[%emt 0:05:39]} g5 {[%emt 0:04:15]} 26. Kf3 {[%emt 0:02:22]} Kg6 {[%emt 0:00:59]} 27. Kg3 {[%emt 0:04:46]} Kf6 {[%emt 0:05:09]} 28. Kf3 {[%emt 0:01:38]} Ke6 {[%emt 0:00:30]} 29. Kf2 {[%emt 0:01:36]} Kd6 {[%emt 0:01:28]} 30. Kf3 {[%emt 0:01:20]} Ke6 {[%emt 0:01:24]} 31. Kf2 {[%emt 0:00:05]} h5 {[%emt 0:00:37]} 32. Kf3 {[%emt 0:02:09]} h4 {[%emt 0:02:06]} 33. Ke2 {[%emt 0:00:28]} f4 {[%emt 0:01:43]} 34. Kf2 {[%emt 0:00:53]} Kf5 {[%emt 0:00:26]} 35. Kf3 {[%emt 0:02:07]} g4+ {[%emt 0:00:59]} 36. Ke2 {[%emt 0:00:28]} Ke4 {[%emt 0:00:18]} 37. exf4 {[%emt 0:00:04]} Kxf4 {[%emt 0:00:06]} 38. c3 {[%emt 0:00:56]} Ke4 {[%emt 0:00:53]} 39. Kd2 {[%emt 0:00:31]} h3 {[%emt 0:00:23]} 40. g3 {[%emt 0:00:28]} Kf3 {[%emt 0:00:44]} 41. Kd3 {[%emt 0:05:20]} Kg2 {[%emt 0:00:05]} 42. Ke2 {[%emt 0:00:13]} Kxh2 {[%emt 0:00:22]} 43. Kf2 {[%emt 0:00:10]} a6 {[%emt 0:00:05]} 44. Kf1 {[%emt 0:00:05]} Kxg3 {[%emt 0:00:04]} 45. Kg1 {[%emt 0:00:03]} h2+ {[%emt 0:00:10]} 46. Kh1 {[%emt 0:00:03]} Kh3 {[%emt 0:00:07]} 0-1